Cogmind - Beta 16 @@@ ROGUE MODE // 2026.01.27 @ 22:05:00 // AFD2019/Pay2Buy Player: Anting Result: Self-destructed Performance ------------- Evolutions (2) 1000 Regions Visited (8) 1600 Robots Destroyed (110) 550 Value Destroyed (3625) 3625 Prototype IDs (6) 120 Alien Tech Used (0) 0 Bonus (491) 491 TOTAL SCORE: 7386 Bonus ------- High Alert Combat Kills 206 Follower Combat Kills 85 Entered Garrisons 200 Cogmind --------- Core Integrity 446/550 Matter 300/300 Energy 86/100 System Corruption 0% Temperature Cool (0) Movement Treading (166) Location -8/Garrison Parts ------- > --- POWER (1) -------- Fusion Compressor > --- PROPULSION (3) --- Improved Treads Armored Treads Armored Treads > --- UTILITY (4) ------ Improved Heat Sink Advanced Targeting Computer Improved Medium Armor Plating > --- WEAPON (3) ------- Slug Cannon Magnetic Acceleration Cannon Antimatter Cannon > --- INVENTORY (10) --- Improved Cooling System Matter Compressor (250) Advanced Sensor Array High-powered Tractor Beam Proton Cannon Rocket Launcher 99-TNT's Nukerbomber Maul Scythe Peak State ------------ > --- POWER ------------ Fusion Compressor > --- PROPULSION ------- Improved Treads Armored Treads Armored Treads > --- UTILITY ---------- Improved Heat Sink Advanced Targeting Computer Improved Medium Armor Plating High-powered Tractor Beam > --- WEAPON ----------- Slug Cannon Magnetic Acceleration Cannon Antimatter Cannon > --- INVENTORY -------- Improved Cooling System Matter Compressor Advanced Sensor Array Proton Cannon Rocket Launcher 99-TNT's Nukerbomber Maul Scythe [Rating: 45] Favorites ----------- Power Fusion Compressor Power Core Fusion Compressor Propulsion Armored Treads Treads Armored Treads Utility Improved Heat Sink Device Improved Heat Sink Processor Advanced Targeting Computer Protection Powered Armor Weapon Medium Laser Energy Gun Medium Laser Energy Cannon Heavy Particle Cannon Ballistic Gun Autogun Ballistic Cannon Slug Cannon Launcher Rocket Launcher Slashing Weapon Scythe Build | -11 -10 -10 -9 -9 -9 -8 -8 -8 ------- Run | Yrd Mat Min Mat Min Exi Min Mat Gar Slots Evolved 4 | . . . 2 . . . 2 . Power . | . . . . . . . . . Propulsion 1 | . . . 1 . . . . . Utility 2 | . . . 1 . . . 1 . Weapon 1 | . . . . . . . 1 . Parts Attached 18 | 2 1 3 5 1 . . 5 1 Power . | . . . . . . . . . Engine . | . . . . . . . . . Core . | . . . . . . . . . Reactor . | . . . . . . . . . Propulsion . | . . . . . . . . . Treads . | . . . . . . . . . Leg . | . . . . . . . . . Wheel . | . . . . . . . . . Hover . | . . . . . . . . . Flight . | . . . . . . . . . Utility 7 | 1 1 1 2 . . . 2 . Device 5 | 1 1 . 1 . . . 2 . Storage . | . . . . . . . . . Processor . | . . . . . . . . . Hackware . | . . . . . . . . . Protection 2 | . . 1 1 . . . . . Artifact . | . . . . . . . . . Weapon 11 | 1 . 2 3 1 . . 3 1 Energy Gun 3 | 1 . 1 1 . . . . . Energy Cannon 1 | . . . 1 . . . . . Ballistic Gun 1 | . . 1 . . . . . . Ballistic Cannon 3 | . . . . . . . 3 . Launcher 2 | . . . 1 1 . . . . Special Weapon . | . . . . . . . . . Impact Weapon . | . . . . . . . . . Slashing Weapon 1 | . . . . . . . . 1 Piercing Weapon . | . . . . . . . . . Special Melee Weapon . | . . . . . . . . . Unidentified Prototypes . | . . . . . . . . . Parts Lost 9 | . . 2 5 . . . 2 . Power . | . . . . . . . . . Propulsion 3 | . . . 2 . . . 1 . Utility 3 | . . . 2 . . . 1 . Weapon 3 | . . 2 1 . . . . . Highest Loss Streak 3 | . . 1 3 . . . 1 . To Critical Strikes . | . . . . . . . . . Average Backups 7 | 3 6 6 7 8 8 8 8 8 Power . | . . . . . . . . . Propulsion . | . . . . . . . . . Utility 2 | 1 2 1 1 2 2 2 3 3 Weapon 4 | 1 3 4 5 6 6 6 4 5 Tool/Special . | . . . . . . . . . Unused Backups 3 | . . . . . . . . 3 Power . | . . . . . . . . . Propulsion . | . . . . . . . . . Utility . | . . . . . . . . . Weapon 3 | . . . . . . . . 3 Tool/Special . | . . . . . . . . . Average Slot Usage (%) 88 | . 71 84 86 100 100 100 88 92 Core 6 | . . . 6 11 11 11 9 9 Treads 27 | . 14 27 30 33 33 33 26 27 Device 12 | . 14 14 11 11 11 11 9 11 Processor 5 | . . . 3 11 11 11 9 9 Protection 11 | . 14 14 11 11 11 11 8 9 Energy Gun 15 | . 14 13 12 21 22 22 10 . Ballistic Gun 6 | . 14 14 6 . . . 5 . Ballistic Cannon 2 | . . . . . . . 10 25 Peak Build Rating 45 | 10 11 11 31 31 31 31 42 45 Average Rating 22 | 9 9 10 20 31 31 31 36 42 On Entrance 21 | . 9 10 10 31 31 31 31 42 Avg Prop Armor Cover (%) . | . . . . . . . . . Naked Turns . | . . . . . . . . . Heaviest Build 39 | 12 13 12 28 22 21 21 39 37 Greatest Support 63 | 23 23 43 63 63 63 63 63 63 Greatest Overweight (x) . | . . . . . . . . . Average Overweight (x) . | . . . . . . . . . Largest Inventory Capacity 10 | 10 10 10 10 10 10 10 10 10 Average Capacity 10 | 10 10 10 10 10 10 10 10 10 Most Carried 10 | 4 7 10 10 9 9 9 10 10 Average Carried 8 | 3 6 8 9 9 9 9 9 9 Final Capacity 10 | 10 10 10 10 10 10 10 10 10 Final Carried 10 | 4 7 9 9 9 9 9 10 10 Class Distribution -------------------- 85% | Mutant 14% | Gunner Dominant Class ---------------- Mutant | -10/Materials Mutant | -10/Mines Mutant | -9/Materials Mutant | -9/Mines Mutant | -9/Exiles Mutant | -8/Mines Gunner | -8/Materials Gunner | -8/Garrison Resources | -11 -10 -10 -9 -9 -9 -8 -8 -8 ----------- Run | Yrd Mat Min Mat Min Exi Min Mat Gar Matter Collected 2997 | 127 421 86 595 93 . 4 935 736 Remotely 957 | . . . . . . . 316 641 Salvage Created 3899 | 127 535 201 1332 165 . 4 959 576 Parts . | . . . . . . . . . Haulers Intercepted 1 | . 1 . . . . . . . Recyclers Shooed . | . . . . . . . . . Parts Field Recycled . | . . . . . . . . . Retrieved Matter . | . . . . . . . . . Parts Self-Destructed . | . . . . . . . . . Prevented . | . . . . . . . . . Parts Restored . | . . . . . . . . . Kills | -11 -10 -10 -9 -9 -9 -8 -8 -8 ------- Run | Yrd Mat Min Mat Min Exi Min Mat Gar Combat Hostiles Destroyed 83 | . 10 4 27 3 . . 23 16 Guns 41 | . 10 4 17 2 . . 8 . Cannons 26 | . . . 5 . . . 7 14 AOE 14 | . . . 4 1 . . 7 2 Classes Destroyed 12 | 2 4 . 4 . . . 1 1 Worker 4 | . . . 2 2 . . . . Builder 4 | . . . 3 . . . 1 . Tunneler 7 | 5 . . . . . 2 . . Hauler 1 | . 1 . . . . . . . Recycler 4 | 1 1 . . 1 . . 1 . Operator 1 | . . . . . . . 1 . Watcher 6 | . 3 . 3 . . . . . Swarmer 7 | . 3 . . 1 . . 3 . Grunt 55 | . 7 4 16 2 . . 14 12 Brawler 2 | . . . 2 . . . . . Sentry 18 | . . . 9 . . . 6 3 Hunter 1 | . . . . . . . . 1 Best Kill Streak 6 | 5 4 2 6 3 . 1 6 6 Combat Bots Only 6 | . 3 2 4 2 . . 6 6 Max Kills in Single Turn 4 | 1 1 1 4 1 . 1 2 1 Gunslinging . | . . . . . . . . . Exploded 2 | . . . 2 1 . . 2 1 Melee . | . . . . . . . . . Uniques/NPCs Destroyed . | . . . . . . . . . Combat | -11 -10 -10 -9 -9 -9 -8 -8 -8 -------- Run | Yrd Mat Min Mat Min Exi Min Mat Gar Hostile Shots Fired 308 | . 40 25 106 5 . . 95 37 Missed 90 | . 8 6 25 1 . . 35 15 Hits 218 | . 32 19 81 4 . . 60 22 Melee 1 | . . . 1 . . . . . Projectile 217 | . 32 19 80 4 . . 60 22 Critical Strikes 7 | . 1 1 3 . . . 2 . Damage Taken 3165 | . 401 254 1172 66 . . 920 352 Core 328 | . 58 44 122 . . . 89 15 Absorbed by Shields . | . . . . . . . . . Core Remaining (%) 76 | 100 . 59 . . . 69 . . Volleys Fired 262 | 11 51 14 90 11 . . 53 32 Largest 3 | 2 2 2 2 2 . . 3 3 Hottest 128 | 88 88 88 125 105 . . 128 117 Shots Fired 563 | 22 95 28 167 25 . 1 143 82 Gun 400 | 22 95 28 149 24 . 1 81 . Cannon 150 | . . . 17 . . . 54 79 Launcher 13 | . . . 1 1 . . 8 3 Special . | . . . . . . . . . Kinetic 300 | 11 51 14 64 . . . 81 79 Thermal 250 | 11 44 14 102 24 . 1 54 . Explosive 13 | . . . 1 1 . . 8 3 Electromagnetic . | . . . . . . . . . Robot Hit Streak 24 | 7 12 9 15 10 . 4 24 11 Robot Miss Streak 5 | 1 3 2 3 5 . . 4 4 Penetration Max . | . . . . . . . . . Secondary Targets 3 | . . . 2 . . . 1 . Max Gunslinging Chain 1 | . . . 1 . . . 1 . Shots Hit Robots 376 | 15 62 22 123 13 . 1 84 56 Core Hits 162 | 6 21 9 55 7 . 1 36 27 Critical Kills 6 | 1 . . 2 . . . 3 . Critical Parts Destroyed 3 | . . . 1 . . . 2 . Critical Strikes 25 | 1 . . 12 1 . 1 9 1 Burn 15 | . . . 9 1 . 1 4 . Destroy 9 | 1 . . 3 . . . 5 . Blast 1 | . . . . . . . . 1 Melee Attacks 10 | . . . . . . . . 10 Impact . | . . . . . . . . . Slashing 10 | . . . . . . . . 10 Piercing . | . . . . . . . . . Sneak Attacks . | . . . . . . . . . Combat Hostiles . | . . . . . . . . . Follow-up Attacks . | . . . . . . . . . Damage Inflicted 9432 | 243 983 328 2850 300 . 36 2483 2209 Guns 4421 | 243 976 308 1685 223 . 20 966 . Cannons 2590 | . . . 293 . . . 855 1442 Explosions 1836 | . . . 841 48 . . 644 303 Melee 464 | . . . . . . . . 464 Ramming 121 | . 7 20 31 29 . 16 18 . Kinetic 4046 | 105 463 165 734 . . . 1137 1442 Thermal 3687 | 138 513 143 1966 223 . 20 684 . Explosive 1114 | . . . 119 48 . . 644 303 Electromagnetic . | . . . . . . . . . Impact . | . . . . . . . . . Slashing 464 | . . . . . . . . 464 Piercing . | . . . . . . . . . Highest Corruption 2 | . . . 2 2 2 2 . . Average Corruption 2 | . . . 2 2 2 2 . . Corruption Purged . | . . . . . . . . . Corruption Blocked . | . . . . . . . . . Effects 47 | . . . 11 23 2 11 . . Message Errors 4 | . . . 2 1 . 1 . . Matter Fused 15 | . . . 1 7 1 6 . . Heat Flow Errors 8 | . . . 1 5 1 1 . . Energy Discharges 6 | . . . 3 2 . 1 . . Data Loss (minor) 5 | . . . . 4 . 1 . . Data Loss (major) 2 | . . . 2 . . . . . Misfires 6 | . . . 1 4 . 1 . . Weapon Failures 1 | . . . 1 . . . . . Overload Shots . | . . . . . . . . . Overflow Damage 100 | . . . 39 . . . 35 26 Projectiles 13 | . . . . . . . 6 7 Explosions 87 | . . . 39 . . . 29 19 Melee . | . . . . . . . . . Knockbacks 15 | . . . 1 . . . 9 5 Impact 2 | . . . 1 . . . 1 . Kinetic 13 | . . . . . . . 8 5 Secondary . | . . . . . . . . . Self-Inflicted Damage 153 | . . . 127 . . . 26 . Shots 4 | . . . 2 . . . 2 . Rammed 29 | . 2 5 9 8 . 2 3 . Targets Rammed 35 | . 2 5 9 11 . 4 4 . Kicked . | . . . . . . . . . Crushed 6 | . . . . 3 . 2 1 . Highest Temperature 440 | 161 152 24 440 241 106 129 347 294 Average Temperature 70 | 77 33 13 74 66 63 53 84 97 Received Heat Transfer 1566 | . 201 153 492 36 . . 513 171 Effects 5 | . . . 3 . . . 1 1 Energy Bleed 2 | . . . . . . . 1 1 Interference 3 | . . . 3 . . . . . Siege Activations . | . . . . . . . . . Martial Activations . | . . . . . . . . . Shielding Activations . | . . . . . . . . . Robots Disrupted . | . . . . . . . . . Combat Hostiles . | . . . . . . . . . Robots Corrupted . | . . . . . . . . . Combat Hostiles . | . . . . . . . . . Parts Fried . | . . . . . . . . . Impact Corruptions . | . . . . . . . . . Robots Melted 2 | . . . 1 . . . 1 . Combat Hostiles 2 | . . . 1 . . . 1 . Parts Melted 4 | . . . 1 . . . 3 . Heat Transferred 8466 | 333 1184 407 3989 592 . 111 1850 . Parts Sabotaged . | . . . . . . . . . Parts Stolen . | . . . . . . . . . Parts Stripped . | . . . . . . . . . Power Chain Reactions . | . . . . . . . . . Alert | -11 -10 -10 -9 -9 -9 -8 -8 -8 ------- Run | Yrd Mat Min Mat Min Exi Min Mat Gar Maximum Alert Level 3 | . . . 2 . . . 2 3 Low Security (%) 82 | 100 100 100 56 100 . 100 62 . Level 1 9 | . . . 18 . . . 34 39 Level 2 8 | . . . 25 . . . 2 51 Level 3 . | . . . . . . . . 8 Level 4 . | . . . . . . . . . Level 5 . | . . . . . . . . . High Security . | . . . . . . . . . Max Security . | . . . . . . . . . Peak Influence 718 | 10 71 56 460 179 . 5 405 718 Initial 237 | . . 16 . 159 . . . 237 Average 91 | 1 14 5 197 41 . . 157 479 Influence Increases 2672 | 30 291 115 844 189 . 10 712 481 Destroy 0b10 Robot/C 1720 | . 200 80 540 120 . . 460 320 Destroy 0b10 Robot/NC 145 | 30 25 . 40 15 . 10 15 10 Destroy Leader 384 | . 48 20 156 20 . . 110 30 Allied During Kill 15 | . . . . 11 . . 4 . Successful Hack 41 | . 15 . 12 . . . . 14 Disable Machine 120 | . . . 45 15 . . 30 30 Anti-Garrison Action 50 | . . . . . . . . 50 Destroy Structure 152 | . 3 . 51 8 . . 63 27 Partial Spotted 15 | . . . . . . . 15 . Lose Combat Pursuer 30 | . . 15 . . . . 15 . Influence Decreases 1954 | 30 248 158 436 597 . 10 346 129 Entered New Map 405 | . . 27 . 249 . . . 129 Time Decay 1434 | 30 248 121 386 333 . 10 306 . Lost Part 80 | . . 10 50 . . . 20 . Lost Ally 35 | . . . . 15 . . 20 . Squads Dispatched 5 | . 2 . 1 1 . . 1 . Investigation 2 | . 1 . . 1 . . . . Extermination . | . . . . . . . . . Reinforcement 3 | . 1 . 1 . . . 1 . Assault . | . . . . . . . . . Garrison . | . . . . . . . . . Intercept . | . . . . . . . . . Searches Triggered . | . . . . . . . . . Construction Impeded 1 | . . . . . . . 1 . Haulers Reinforced . | . . . . . . . . . Active Scanning Responses . | . . . . . . . . . Cargo Convoy Interrupts . | . . . . . . . . . Stealth | -11 -10 -10 -9 -9 -9 -8 -8 -8 --------- Run | Yrd Mat Min Mat Min Exi Min Mat Gar Distress Signals 10 | . . . 3 1 . . 6 . Communications Jammed . | . . . . . . . . . Distress Signals . | . . . . . . . . . Times Spotted 113 | . 14 7 41 5 . . 31 15 Peak Tracking Total 7 | . 3 2 5 3 . . 7 5 Tactical Retreats 2 | . . 1 . . . . 1 . Traps | -11 -10 -10 -9 -9 -9 -8 -8 -8 ------- Run | Yrd Mat Min Mat Min Exi Min Mat Gar Traps Triggered 3 | . 2 . 1 . . . . . Indirectly . | . . . . . . . . . Trap Hack Attempts . | . . . . . . . . . Triggered . | . . . . . . . . . Disarmed . | . . . . . . . . . Reprogrammed . | . . . . . . . . . Reused . | . . . . . . . . . Traps Extracted . | . . . . . . . . . Installed . | . . . . . . . . . Triggered . | . . . . . . . . . Most Traps Carried 3 | . . 3 3 . . . . . Machines | -11 -10 -10 -9 -9 -9 -8 -8 -8 ---------- Run | Yrd Mat Min Mat Min Exi Min Mat Gar Machines Disabled 8 | . . . 3 1 . . 2 2 Max in Single Turn 3 | . . . 3 1 . . 1 1 Machines Repaired . | . . . . . . . . . Machines Dismantled . | . . . . . . . . . Machines Sabotaged . | . . . . . . . . . Overloaded Fab Kills . | . . . . . . . . . Hacking | -11 -10 -10 -9 -9 -9 -8 -8 -8 --------- Run | Yrd Mat Min Mat Min Exi Min Mat Gar Machines Accessed 13 | . 6 . 2 2 1 . 1 1 Terminals 8 | . 6 . 1 . . . . 1 Fabricators . | . . . . . . . . . Repair Stations . | . . . . . . . . . Recycling Units . | . . . . . . . . . Scanalyzers 1 | . . . 1 . . . . . Garrison Access 1 | . . . . . . . 1 . Total Hacks 31 | . 16 . 9 2 1 . 1 2 Successful 14 | . 6 . 3 2 1 . 1 1 Failed 17 | . 10 . 6 . . . . 1 Catastrophic 4 | . 3 . . . . . . 1 Database Lockouts . | . . . . . . . . . Manual 12 | . 8 . 4 . . . . . Terminals 23 | . 16 . 5 . . . . 2 Fabricators . | . . . . . . . . . Repair Stations . | . . . . . . . . . Recycling Units . | . . . . . . . . . Scanalyzers 4 | . . . 4 . . . . . Garrison Access 1 | . . . . . . . 1 . Terminal Hacks 12 | . 6 . 2 2 1 . . 1 Record 1 | . . . . . 1 . . . Part Schematic 1 | . 1 . . . . . . . Robot Analysis 3 | . 2 . 1 . . . . . Prototype ID Bank 2 | . 1 . 1 . . . . . Open Door 2 | . . . . 2 . . . . Emergency Access Points 1 | . . . . . . . . 1 Locate Traps 2 | . 2 . . . . . . . Fabricator Hacks . | . . . . . . . . . Repair Station Hacks . | . . . . . . . . . Recycling Unit Hacks . | . . . . . . . . . Scanalyzer 1 | . . . 1 . . . . . Retrieve Study 1 | . . . 1 . . . . . Garrison Access Hacks 1 | . . . . . . . 1 . Unlock Access 1 | . . . . . . . 1 . Unauthorized Hacks . | . . . . . . . . . Terminals . | . . . . . . . . . Fabricators . | . . . . . . . . . Repair Stations . | . . . . . . . . . Recycling Units . | . . . . . . . . . Scanalyzers . | . . . . . . . . . Garrison Access . | . . . . . . . . . Data Cores Recovered 1 | . . . . . . . 1 . Used . | . . . . . . . . . Hacking Detections 9 | . 6 . 2 . . . . 1 Full Trace Events 1 | . . . . . . . . 1 Feedback Events . | . . . . . . . . . Feedback Blocked . | . . . . . . . . . Robot Schematics Acquired . | . . . . . . . . . Robots Built . | . . . . . . . . . Authchips . | . . . . . . . . . Time . | . . . . . . . . . Total Robot Build Rating . | . . . . . . . . . Part Schematics Acquired 1 | . 1 . . . . . . . Parts Built . | . . . . . . . . . Authchips . | . . . . . . . . . Time . | . . . . . . . . . Total Part Build Rating . | . . . . . . . . . Part Studies Acquired 1 | . . . 1 . . . . . Parts Repaired . | . . . . . . . . . Time . | . . . . . . . . . Parts Recycled . | . . . . . . . . . Recycled Matter . | . . . . . . . . . Retrieved Matter . | . . . . . . . . . Retrieved Components . | . . . . . . . . . Parts Scanalyzed . | . . . . . . . . . Part Schematics Acquired . | . . . . . . . . . Parts Damaged . | . . . . . . . . . Bothacking | -11 -10 -10 -9 -9 -9 -8 -8 -8 ------------ Run | Yrd Mat Min Mat Min Exi Min Mat Gar Used RIF Installer . | . . . . . . . . . Robots Hacked . | . . . . . . . . . Non-combat . | . . . . . . . . . Combat . | . . . . . . . . . Robot Hacks Applied . | . . . . . . . . . Relay Couplers Released . | . . . . . . . . . Fabnet Peak Effective % . | . . . . . . . . . Robots Rewired . | . . . . . . . . . Allies Hacked . | . . . . . . . . . Hacks Repelled . | . . . . . . . . . Allies | -11 -10 -10 -9 -9 -9 -8 -8 -8 -------- Run | Yrd Mat Min Mat Min Exi Min Mat Gar Total Allies 3 | . . . . 3 . . . . Largest Group 3 | . . . . 3 2 2 2 . Highest-Rated Group 40 | . . . . 40 32 32 32 . Highest-Rated Ally 16 | . . . . 16 16 16 16 . Total Orders . | . . . . . . . . . Ally Attacks 19 | . . . . 16 . . 3 . Total Damage 193 | . . . . 163 . . 30 . Kills 3 | . . . . 3 . . . . Allies Corrupted . | . . . . . . . . . Allies Melted . | . . . . . . . . . Intel | -11 -10 -10 -9 -9 -9 -8 -8 -8 ------- Run | Yrd Mat Min Mat Min Exi Min Mat Gar Active Infowar (turns) 1638 | 124 1268 . 245 . . . 1 . Sensors 1 | . . . . . . . 1 . Seismic 1637 | 124 1268 . 245 . . . . . Robot Analysis Total 3 | . 2 . 1 . . . . . Derelict Logs Recovered . | . . . . . . . . . Drone Launches . | . . . . . . . . . Drone Recoveries . | . . . . . . . . . Exploration | -11 -10 -10 -9 -9 -9 -8 -8 -8 ------------- Run | Yrd Mat Min Mat Min Exi Min Mat Gar Turns Passed 8008 | 126 1456 1122 1595 1313 269 950 787 390 Spaces Moved 3950 | 56 764 610 557 738 163 569 340 153 Core . | . . . . . . . . . Treads 3950 | 56 764 610 557 738 163 569 340 153 Legs . | . . . . . . . . . Wheels . | . . . . . . . . . Hover . | . . . . . . . . . Flight . | . . . . . . . . . Fastest Speed 160 | 160 160 160 160 166 166 166 165 166 Average Speed 163 | 160 160 160 164 166 166 166 165 166 Slowest Speed 170 | 160 160 160 170 166 166 166 166 166 Overloaded Moves . | . . . . . . . . . Propulsion Burnouts . | . . . . . . . . . Robots Hopped . | . . . . . . . . . Potential Cave-ins . | . . . . . . . . . Cave-ins Triggered . | . . . . . . . . . Exploration Rate (%) 64 | 3 83 97 76 95 48 93 60 29 Regions Visited 8 Branch Regions 4 Pre-discovered Areas 1 | . . . . . 1 . . . Known Exits Taken 1 | . . . . . . . 1 . Unknown Exits Taken 7 | 1 1 1 1 1 1 1 . . Scrap Searched . | . . . . . . . . . Spaces Dug 34 | . . . . . . . 34 . Terrain Destroyed 147 | . . . 57 8 . . 75 7 Melee . | . . . . . . . . . Projectile 24 | . . . 3 . . . 14 7 AOE 123 | . . . 54 8 . . 61 . Terrain Rammed . | . . . . . . . . . Walls Destroyed . | . . . . . . . . . Machines Disabled . | . . . . . . . . . Actions | -11 -10 -10 -9 -9 -9 -8 -8 -8 --------- Run | Yrd Mat Min Mat Min Exi Min Mat Gar Total 4987 | 72 908 728 1079 797 162 572 459 210 Wait 658 | 4 84 90 405 36 . . 36 3 Move 3943 | 55 763 609 556 737 162 568 340 153 Hop . | . . . . . . . . . Pick Up 11 | . . 5 3 . . . 3 . Fast Attach 1 | . . . . . . . 1 . Attach 17 | . . 3 4 . . . 6 4 Detach 13 | . . . 3 . . . 6 4 Swap 26 | 2 8 1 5 2 . . 4 4 Drop 11 | . . 1 4 . . . 6 . Fire 262 | 11 51 14 90 11 . . 53 32 Melee 10 | . . . . . . . . 10 Ram . | . . . . . . . . . Kick . | . . . . . . . . . Crush 35 | . 2 5 9 11 . 4 4 . Escape Stasis . | . . . . . . . . . Rewire . | . . . . . . . . . Trap . | . . . . . . . . . Miscellaneous . | . . . . . . . . . Route ------- -11/Scrapyard -10/Materials (discovered 4 exits: *Mat x3 / [*Min]) -10/Mines (discovered 3 exits: *Mat x2 / [*Sub]) -9/Materials (discovered 5 exits: *Mat / *Min x2 / [*Sto x2]) -9/Mines (discovered 4 exits: *Mat x2 / *Exi / [*Zio]) -9/Exiles (discovered 2 exits: [*Min x2]) -8/Mines (discovered 2 exits: *Mat x2) -8/Materials (discovered 2 exits: [*Fac] / Gar) -8/Garrison History --------- Turn | Location | Event 8 | -11/Scrapyard | Discovered new exit (range 16) 127 | -11/Scrapyard | Entered Materials 305 | -10/Materials | Build established: Mutant 400 | -10/Materials | Discovered new exit (range 7) 528 | -10/Materials | Discovered new exit (range 14) 794 | -10/Materials | Discovered new exit (range 8) 1004 | -10/Materials | Discovered new exit (range 7) 1583 | -10/Materials | Entered Mines 1640 | -10/Mines | Discovered new exit (range 9) 1678 | -10/Mines | Discovered new exit (range 9) 1707 | -10/Mines | Received a Rocket Launcher from a helpful Derelict 1869 | -10/Mines | Discovered new exit (range 9) 1916 | -10/Mines | A weapon hastily lodged in a ceiling crevice suddenly fell to the ground 2058 | -10/Mines | Found a hidden stash of uninstalled traps 2381 | -10/Mines | Joined a pair of Derelicts in attacking an 0b10 outpost 2705 | -10/Mines | Entered Materials 2705 | -9/Materials | Evolved 2 slots: Propulsion x1, Utility x1 3371 | -9/Materials | Found 99-TNT's Nukerbomber 3433 | -9/Materials | Discovered new exit (range 9) 3503 | -9/Materials | Found Powered Armor 3640 | -9/Materials | Lost 3 parts (1n2u) 3711 | -9/Materials | Discovered new exit (range 8) 3778 | -9/Materials | Discovered new exit (range 12) 4050 | -9/Materials | Discovered new exit (range 4) 4053 | -9/Materials | Discovered new exit (range 13) 4300 | -9/Materials | Entered Mines 4337 | -9/Mines | Met a Derelict bent on vengeance 4374 | -9/Mines | Discovered new exit (range 9) 4491 | -9/Mines | Met a Derelict shopkeep closing up shop 4539 | -9/Mines | A Derelict revealed a hidden shortcut to a safe place 4571 | -9/Mines | Discovered new exit (range 12) 4586 | -9/Mines | Assisted by bots powering up and referring to "LRC-V3" 4840 | -9/Mines | Deemed a non-threat by the Exiles lab entrance 4840 | -9/Mines | Discovered new exit (range 5) 4939 | -9/Mines | Found the Drone Emporium 5613 | -9/Mines | Entered Exiles 5613 | -9/Exiles | Accompanied by 2 allies 5655 | -9/Exiles | Met 8R-AWN 5667 | -9/Exiles | Discovered new exit (range 14) 5743 | -9/Exiles | Met EX-HEX 5808 | -9/Exiles | Met EX-DEC 5814 | -9/Exiles | Learned location of Zion (-7) 5862 | -9/Exiles | Discovered new exit (range 14) 5882 | -9/Exiles | Entered Mines 5882 | -8/Mines | Accompanied by 2 allies 6216 | -8/Mines | Discovered new exit (range 4) 6470 | -8/Mines | Discovered new exit (range 6) 6832 | -8/Mines | Entered Materials 6832 | -8/Materials | Accompanied by 2 allies 6832 | -8/Materials | Evolved 2 slots: Utility x1, Weapon x1 7138 | -8/Materials | Build established: Gunner 7576 | -8/Materials | Discovered new exit (range 8) 7619 | -8/Materials | Identified exit to Garrison 7619 | -8/Materials | Entered Garrison 7684 | -8/Garrison | Triggered checkpoint 7764 | -8/Garrison | Triggered checkpoint 7817 | -8/Garrison | Triggered checkpoint 7911 | -8/Garrison | Triggered checkpoint 8009 | -8/Garrison | Self-destructed Last Messages --------------- 07926_ Acquired 4 matter. 07926_ Acquired 2 matter. 07926_ Acquired 6 matter. 07934_ Sneak attack on C-45 Heavy ARC. 07942_ C-45 Heavy ARC destroyed. 07943_ Acquired 84 matter. 07944_ Sneak attack on C-45 Heavy ARC. 07957_ C-45 Heavy ARC destroyed. 07958_ Acquired 60 matter. 07960_ Acquired 10 matter. 07973_ Connecting with Garrison Terminal... >>Access(Emergency) Found 51 emergency access points. Map updated. 07973_ ALERT: Suspicious activity at Terminal G004. Transmitting hostile system tracking data. 07974_ Y-45 Defender destroyed. 07975_ Acquired 1 matter. 07975_ Acquired 17 matter. Map ----- +----------------------------------------------------+ | | | | | | | | | | | | | ????????????????????????????????????????????? | | ????????????????????????????????????????????? | | ????????????????????????????????????????????? | | ????????????????????????????????????????????? | | ????????????????????????????????????????????? | | ????????????????????????????????????????????? | | ????????????????????????????????????????????? | | ????????????????????????????????????????????? | | ????????????????????????????????????????????? | | ????????????????????????????????????????????? | | ????????????????????????????????????????????? | | ????????????????????????????????????????????? | | ????????????????????????????????????????????? | | ????????????????????????????????????????????? | | ????????????? ????????????????????????????? | | ????????????# ????????????????????????????? | | ????????????# ???????#####????????????????? | | ????????????# ???????# #????????????????? | | ????????????# ???????# #????????????????? | | ????????????# ???????# @ #????????????????? | | ????????????+ ???????## ##????????????????? | | ????????????# %#???????# #?????????????????? | | ????????????# #???????# #?????????????????? | | ??+?????????# #???????# #?????????????????? | | ????????????# #????####+####??????????????? | | ????????????# #????# "#??????????????? | | ??????+?????# #????# "#??????????????? | | ????????????# ##???# """"""#??????????????? | | ????????????# T#???# #######??????????????? | | ??+?????????# #????# #??###???????????????? | | ????????????# #??### #?# ##??????????????? | | ????????##### ####" ## ##?????????????? | | ? " " " #?????????????? | | ??????## #### ####% ## # #?????????????? | | ????????????# #??### #? # #?????????????? | | ???????#+#### ###### #??#?###?????????????? | | ???????# #????????????????????? | | ???????# #### ########????????????????????? | | ???????# #??# #???????????????????????????? | | ???????# #??# #???????????????????????????? | | ???????# #??# #???????????????????????????? | | ???????# #??# #???????????????????????????? | | +####### #### #???????????????????????????? | | #???????????????????????????? | +----------------------------------------------------+ Best States ------------- Heat Dissipation 50 Energy Generation 25 Energy Capacity 100 Matter Stores 300 Matter Capacity 300 Sight Range 16 Terrain Scan Density 10 Armor Coverage 550 Evasion (%) 40 Targeting Accuracy 8 Recoil Reduction 3 Item Schematics ----------------- Huge Storage Unit | -10/Materials | Hacked Robot Schematics ------------------ None Fabricated ------------ Nothing Repaired ---------- Nothing Studied --------- Arm. Treads | -9/Materials | Hacked Alien Tech Used ----------------- None Achievements -------------- None Challenges ------------ None Cogshop Purchases (35) ------------------------ Hrd. Light Armor Plating (Loot Box) Cooling System (Loot Box) Imp. Treads (Loot Box) Welding Torch (Loot Box) Autogun (Loot Box) Lgt. Armor Plating (Loot Box) Med. Laser (Loot Box) Particle Gun (Loot Box) Seismic Detector (599) Grenade Launcher (882) Autogun (716) Scythe (Loot Box) Lgt. Treads (788) Arm. Treads (891) Powered Armor (Loot Box) Hvy. Particle Cannon (Loot Box) Fusion Compressor (Loot Box) Hvy. Particle Gun (Loot Box) 99-TNT's Nukerbomber (Loot Box) Adv. Targeting Computer (846) Hpw. Tractor Beam (879) Imp. Heat Sink (879) Arm. Treads (1053) Imp. Treads (1192) Arm. Treads (907) Imp. Cooling System (1168) Adv. Sensor Array (Loot Box) Matter Compressor (Loot Box) Antimatter Cannon (Loot Box) Proton Cannon (Loot Box) Magnetic Acceleration Cannon (Loot Box) Maul (Loot Box) Hvy. Flak Cannon (Loot Box) Fusion Compressor (Loot Box) Imp. Medium Armor Plating (1032) Game ------ Seed PiercingCryofiberAutobeam Manual? 0 Play Time 00:47:23 Cumulative 414.4 hours Start 2026.01.13 @ 16:46:36 End 2026.01.27 @ 22:05:00 Sessions 5 Manual Loads 0 Difficulty Rogue Special Mode AFD2019/Pay2Buy Game No. 272 Rogue 272 Adventurer 0 Explorer 0 Win Type - Total 27 Types 10/0/8/1/1/0/3/2/1/1 Lore% 84 Gallery% 80 Achievement% 71 Wizard Run 0 Options --------- Layout 1 ASCII 0 Keyboard 0 Movement Mouse Keybinds 0 Fullscreen 2 Font 24/Smallcaps Map View 50x35 Zoom Use 0% Tactical HUD 1 Map Filters NONE Filters NONE Steam 1 RUN: fef01e76-024b-4324-95e0-6cf2953bb749